[Event "17th Delhi GM Open 2019"]
[Site "Delhi"]
[Date "2019.01.12"]
[Round "6"]
[White "Swati Ghate"]
[Black "Karthikeyan, P.."]
[Result "0-1"]
[ECO "C60"]
[WhiteElo "2216"]
[BlackElo "2457"]
[Annotator "ChessBase"]
[PlyCount "92"]
[EventDate "2019.01.09"]
[EventType "swiss"]
[EventCountry "IND"]
[SourceTitle "playchess.com"]
[Source "ChessBase"]
[SourceQuality "1"]
[TimeControl "5400+30"]

1. e4 {[%emt 0:00:00]} e5 {[%emt 0:18:03]} 2. Nf3 {[%emt 0:00:00]} Nc6 {[%emt 0:00:06]} 3. Bb5 {[%emt 0:00:09]} g6 {[%emt 0:00:06]} 4. c3 {[%emt 0:00:33]} a6 {[%emt 0:00:26]} 5. Ba4 {[%emt 0:00:12]} Bg7 {[%emt 0:00:10]} 6. d4 {[%emt 0:00:14]} exd4 {[%emt 0:00:33]} 7. cxd4 {[%emt 0:00:24]} b5 {[%emt 0:00:23]} 8. Bb3 {[%emt 0:00:33]} d6 {[%emt 0:00:10]} 9. h3 {[%emt 0:11:55]} Nf6 {[%emt 0:00:07]} 10. O-O {[%emt 0:00:46]} O-O {[%emt 0:00:05]} 11. Nc3 {[%emt 0:02:27]} Bb7 {[%emt 0:03:50]} 12. e5 {[%emt 0:08:27]} dxe5 {[%emt 0:11:29]} 13. dxe5 {[%emt 0:00:16]} Nd7 {[%emt 0:00:03]} 14. Bg5 {[%emt 0:05:47]} Qe8 {[%emt 0:02:03]} 15. Nd5 {[%emt 0:04:07]} Ncxe5 {[%emt 0:02:06]} 16. Re1 {[%emt 0:03:33]} c5 {[%emt 0:07:09]} 17. Nxe5 {[%emt 0:11:59]} Nxe5 {[%emt 0:00:51]} 18. f4 {[%emt 0:08:56]} c4 {[%emt 0:01:15]} 19. Rxe5 {[%emt 0:20:14]} Qb8 {[%emt 0:10:51]} 20. Re1 {[%emt 0:00:00]} Qe8 21. Re5 {[%emt 0:01:00]} Qb8 {[%emt 0:01:00]} 22. Re1 {[%emt 0:00:00]} Qe8 23. Re5 {[%emt 0:01:00]} Qb8 {[%emt 0:01:00]} 24. Bc2 {[%emt 0:07:29]} Bxe5 {[%emt 0:07:46]} 25. fxe5 {[%emt 0:00:10]} Qxe5 {[%emt 0:00:31]} 26. Nf6+ {[%emt 0:00:11]} Kh8 {[%emt 0:01:22]} 27. Qd2 {[%emt 0:05:38]} Rad8 {[%emt 0:03:17]} 28. Qc3 {[%emt 0:00:28]} Qxc3 {[%emt 0:03:01]} 29. bxc3 {[%emt 0:00:02]} Rd6 {[%emt 0:04:50]} 30. Rf1 {[%emt 0:02:58]} h5 {[%emt 0:04:10]} 31. Bf4 {[%emt 0:02:44]} Re6 {[%emt 0:00:30]} 32. Nd7 {[%emt 0:01:42]} Rfe8 {[%emt 0:00:58]} 33. Nc5 {[%emt 0:01:24]} Re2 {[%emt 0:01:06]} 34. Rf2 {[%emt 0:00:25]} Re1+ {[%emt 0:04:51]} 35. Kh2 {[%emt 0:00:01]} R8e2 {[%emt 0:00:01]} 36. Rxe2 {[%emt 0:01:22]} Rxe2 {[%emt 0:00:02]} 37. Nxb7 {[%emt 0:00:05]} Rxc2 {[%emt 0:00:16]} 38. Be5+ {[%emt 0:00:08]} Kg8 {[%emt 0:00:53]} 39. a3 {[%emt 0:00:02]} g5 {[%emt 0:04:47]} 40. Kg3 {[%emt 0:01:27]} f5 {[%emt 0:01:37]} 41. Nd6 {[%emt 0:00:28]} f4+ {[%emt 0:01:13]} 42. Kf3 {[%emt 0:00:34]} Ra2 {[%emt 0:01:09]} 43. Ne4 {[%emt 0:00:31]} Rxa3 {[%emt 0:00:02]} 44. Nxg5 {[%emt 0:00:08]} b4 {[%emt 0:00:22]} 45. Ne4 {[%emt 0:00:05]} b3 {[%emt 0:00:13]} 46. Nd2 {[%emt 0:00:02]} b2 {[%emt 0:00:23]} 0-1

[Event "17th Delhi GM Open 2019"]
[Site "Delhi"]
[Date "2019.01.12"]
[Round "6"]
[White "Saurabh Anand"]
[Black "Manik, Mikulas"]
[Result "1-0"]
[ECO "B69"]
[WhiteElo "2210"]
[BlackElo "2413"]
[Annotator "NA"]
[PlyCount "80"]
[EventDate "2019.01.09"]
[EventType "swiss"]
[EventCountry "IND"]
[SourceTitle "playchess.com"]
[Source "ChessBase"]
[SourceQuality "1"]
[TimeControl "5400+30"]

1. e4 {[%emt 0:00:00]} c5 {[%emt 0:00:00]} 2. Nf3 {[%emt 0:00:00]} d6 {[%emt 0:00:00]} 3. d4 cxd4 {[%emt 0:00:00]} 4. Nxd4 {[%emt 0:00:24]} Nf6 {[%emt 0:00:00]} 5. Nc3 {[%emt 0:00:11]} Nc6 {[%emt 0:00:00]} 6. Bg5 {[%emt 0:00:23]} e6 {[%emt 0:00:00]} 7. Qd2 {[%emt 0:00:26]} a6 {[%emt 0:01:31]} 8. O-O-O {[%emt 0:00:40]} Bd7 {[%emt 0:02:04]} 9. f4 {[%emt 0:00:35]} Be7 {[%emt 0:00:05]} 10. Nf3 {[%emt 0:05:04]} b5 {[%emt 0:01:08]} 11. Bxf6 {[%emt 0:00:12]} gxf6 {[%emt 0:00:04]} 12. f5 {[%emt 0:00:53]} Qa5 {[%emt 0:01:42]} 13. Kb1 {[%emt 0:01:40]} h5 {[%emt 0:02:05]} 14. g3 {[%emt 0:02:54]} Rc8 {[%emt 0:02:36]} 15. fxe6 {[%emt 0:05:11]} fxe6 {[%emt 0:00:21]} 16. Bh3 {[%emt 0:00:32]} Ne5 {[%emt 0:01:54]} 17. Nxe5 {[%emt 0:10:04]} fxe5 {[%emt 0:00:10]} 18. g4 {[%emt 0:00:37]} Rc4 {[%emt 0:12:46]} 19. g5 {[%emt 0:13:39]} b4 {[%emt 0:34:40]} 20. Ne2 {[%emt 0:00:41]} Rg8 {[%emt 0:02:40]} 21. Rhg1 {[%emt 0:03:38]} Rxe4 {[%emt 0:06:33]} 22. g6 {[%emt 0:03:16]} Qc5 {[%emt 0:03:56]} 23. Ng3 {[%emt 0:00:00]} Qa5 {[%emt 0:00:00]} 24. Ne2 {[%emt 0:01:00]} Qc5 {[%emt 0:01:00]} 25. Ng3 {[%emt 0:00:00]} Qa5 {[%emt 0:00:00]} 26. Ne2 {[%emt 0:01:00]} Qc5 {[%emt 0:01:00]} 27. Ng3 Rf4 {[%emt 0:11:41]} 28. Nxh5 {[%emt 0:14:41]} Rf2 {[%emt 0:00:14]} 29. Qc1 {[%emt 0:07:12]} Rxh2 {[%emt 0:03:05]} 30. g7 {[%emt 0:03:44]} Kd8 {[%emt 0:08:56]} 31. Rh1 {[%emt 0:01:26]} Rf2 {[%emt 0:01:44]} 32. Rdf1 {[%emt 0:02:41]} e4 {[%emt 0:01:44]} 33. Rxf2 {[%emt 0:01:22]} Qxf2 {[%emt 0:00:01]} 34. Qh6 {[%emt 0:00:21]} e3 {[%emt 0:01:09]} 35. Bxe6 {[%emt 0:01:11]} e2 {[%emt 0:01:41]} 36. Bxg8 {[%emt 0:00:16]} e1=Q+ 37. Rxe1 {[%emt 0:00:07]} Qxe1+ {[%emt 0:00:42]} 38. Qc1 {[%emt 0:00:08]} Qxc1+ {[%emt 0:00:37]} 39. Kxc1 {[%emt 0:00:06]} Bg5+ {[%emt 0:00:03]} 40. Kb1 Be7 1-0

[Event "17th Delhi GM Open 2019"]
[Site "Delhi"]
[Date "2019.01.12"]
[Round "6"]
[White "Bharat Kumar Reddy Poluri"]
[Black "Das, Sayantan"]
[Result "1/2-1/2"]
[ECO "C70"]
[WhiteElo "2197"]
[BlackElo "2451"]
[Annotator "ChessBase"]
[PlyCount "154"]
[EventDate "2019.01.09"]
[EventType "swiss"]
[EventCountry "IND"]
[SourceTitle "playchess.com"]
[Source "ChessBase"]
[SourceQuality "1"]
[TimeControl "5400+30"]

1. e4 {[%emt 0:00:00]} e5 {[%emt 0:01:54]} 2. Nf3 {[%emt 0:00:00]} Nc6 {[%emt 0:00:06]} 3. Bb5 {[%emt 0:00:09]} a6 {[%emt 0:00:18]} 4. Ba4 {[%emt 0:00:08]} Nge7 {[%emt 0:00:40]} 5. O-O {[%emt 0:01:55]} g6 {[%emt 0:00:15]} 6. c3 {[%emt 0:02:37]} Bg7 {[%emt 0:00:12]} 7. d4 {[%emt 0:00:08]} exd4 {[%emt 0:00:42]} 8. cxd4 {[%emt 0:00:58]} b5 {[%emt 0:00:12]} 9. Bb3 {[%emt 0:00:31]} O-O {[%emt 0:02:13]} 10. d5 {[%emt 0:10:50]} Na5 {[%emt 0:00:11]} 11. d6 {[%emt 0:01:28]} cxd6 {[%emt 0:05:51]} 12. Nc3 {[%emt 0:04:06]} Bb7 {[%emt 0:15:33]} 13. Bd5 {[%emt 0:03:49]} Nxd5 {[%emt 0:03:31]} 14. Nxd5 {[%emt 0:01:34]} Nc4 {[%emt 0:03:17]} 15. Rb1 {[%emt 0:06:31]} Re8 {[%emt 0:10:43]} 16. b3 {[%emt 0:02:39]} Ne5 {[%emt 0:10:55]} 17. Bf4 {[%emt 0:17:00]} Bxd5 {[%emt 0:05:35]} 18. Qxd5 {[%emt 0:00:20]} Nxf3+ {[%emt 0:00:48]} 19. gxf3 {[%emt 0:00:02]} Be5 {[%emt 0:04:12]} 20. Bg3 {[%emt 0:00:23]} Qf6 {[%emt 0:01:56]} 21. Kg2 {[%emt 0:00:57]} Rac8 {[%emt 0:01:44]} 22. Rbc1 {[%emt 0:04:18]} h5 {[%emt 0:07:30]} 23. Qb7 {[%emt 0:04:07]} Rcd8 {[%emt 0:07:41]} 24. h4 {[%emt 0:05:42]} Bxg3 {[%emt 0:00:43]} 25. Kxg3 {[%emt 0:02:11]} Qe5+ {[%emt 0:04:39]} 26. f4 {[%emt 0:05:53]} Qxe4 {[%emt 0:03:25]} 27. Qxe4 {[%emt 0:00:02]} Rxe4 {[%emt 0:00:02]} 28. Kf3 {[%emt 0:03:13]} Re6 {[%emt 0:01:00]} 29. Rfd1 {[%emt 0:00:12]} Kf8 {[%emt 0:01:01]} 30. Rc7 {[%emt 0:00:19]} Ke7 {[%emt 0:05:15]} 31. Ra7 {[%emt 0:00:29]} Rc8 {[%emt 0:01:09]} 32. Rxa6 {[%emt 0:00:03]} Rc3+ {[%emt 0:00:29]} 33. Kg2 {[%emt 0:00:02]} Rc2 {[%emt 0:00:32]} 34. Rd3 {[%emt 0:02:11]} Ree2 {[%emt 0:00:21]} 35. Rf3 {[%emt 0:00:06]} Rxa2 {[%emt 0:01:31]} 36. Rb6 {[%emt 0:00:33]} f5 {[%emt 0:00:25]} 37. Rxb5 {[%emt 0:00:29]} Red2 {[%emt 0:00:18]} 38. Rb8 {[%emt 0:01:39]} Re2 {[%emt 0:00:50]} 39. Rg8 {[%emt 0:00:53]} Kf7 {[%emt 0:00:20]} 40. Rd8 {[%emt 0:00:17]} Ra7 {[%emt 0:00:23]} 41. Rd3 {[%emt 0:00:26]} Re6 {[%emt 0:00:51]} 42. Kg3 {[%emt 0:02:33]} Rb7 {[%emt 0:00:30]} 43. Rh8 {[%emt 0:02:45]} Ke7 {[%emt 0:00:27]} 44. Rc8 {[%emt 0:02:59]} Rb4 {[%emt 0:00:27]} 45. Rg8 {[%emt 0:00:25]} Kf7 {[%emt 0:01:11]} 46. Rd8 {[%emt 0:00:04]} Rb7 {[%emt 0:00:03]} 47. Kg2 {[%emt 0:00:26]} Ke7 {[%emt 0:00:08]} 48. Rg8 {[%emt 0:00:02]} Kf7 {[%emt 0:01:01]} 49. Rd8 {[%emt 0:00:06]} Kf6 {[%emt 0:00:31]} 50. Rf8+ {[%emt 0:00:09]} Ke7 {[%emt 0:00:07]} 51. Rg8 {[%emt 0:00:21]} Rb6 {[%emt 0:00:09]} 52. Rg7+ {[%emt 0:00:35]} Kd8 {[%emt 0:00:23]} 53. Rg8+ {[%emt 0:01:57]} Kc7 {[%emt 0:00:06]} 54. Rg7 {[%emt 0:00:18]} Rb4 {[%emt 0:01:19]} 55. Rc3+ {[%emt 0:00:43]} Kb8 {[%emt 0:00:34]} 56. Kg3 {[%emt 0:01:10]} Rb7 {[%emt 0:00:15]} 57. Kg2 {[%emt 0:01:53]} d5 {[%emt 0:00:30]} 58. Rg3 {[%emt 0:00:06]} Rbb6 {[%emt 0:01:19]} 59. Rxd7 {[%emt 0:00:12]} Red6 {[%emt 0:00:05]} 60. Re7 {[%emt 0:01:40]} d4 {[%emt 0:00:08]} 61. Rd3 {[%emt 0:00:19]} Rbc6 {[%emt 0:00:00]} 62. Rg7 {[%emt 0:00:00]} Rb6 {[%emt 0:01:00]} 63. Re7 {[%emt 0:01:00]} Rbc6 {[%emt 0:00:12]} 64. Re5 {[%emt 0:01:41]} Kc7 {[%emt 0:00:45]} 65. Kf3 {[%emt 0:00:12]} Rc1 {[%emt 0:00:16]} 66. Ra5 {[%emt 0:01:22]} Rh1 {[%emt 0:01:27]} 67. Kg3 {[%emt 0:00:13]} Rg1+ {[%emt 0:00:05]} 68. Kf3 {[%emt 0:00:14]} Rg4 {[%emt 0:00:38]} 69. Ra7+ {[%emt 0:00:19]} Kc8 {[%emt 0:00:37]} 70. Ra4 {[%emt 0:00:32]} Rxh4 {[%emt 0:00:07]} 71. Rdxd4 {[%emt 0:00:04]} Rb6 {[%emt 0:00:55]} 72. Rab4 {[%emt 0:01:11]} Rh3+ {[%emt 0:00:40]} 73. Kg2 {[%emt 0:00:04]} Rxb3 {[%emt 0:00:37]} 74. Rxb3 {[%emt 0:00:04]} Rxb3 {[%emt 0:00:04]} 75. Rd6 {[%emt 0:00:02]} Rb4 {[%emt 0:00:10]} 76. Kf3 {[%emt 0:00:41]} Rb3+ {[%emt 0:00:15]} 77. Kg2 {[%emt 0:00:17]} Rb4 {[%emt 0:00:04]} 1/2-1/2

[Event "17th Delhi GM Open 2019"]
[Site "Delhi"]
[Date "2019.01.12"]
[Round "6"]
[White "Darpan, Inani"]
[Black "Muthaiah AL"]
[Result "0-1"]
[ECO "B27"]
[WhiteElo "2016"]
[BlackElo "2406"]
[Annotator "NA"]
[PlyCount "66"]
[EventDate "2019.01.09"]
[EventType "swiss"]
[EventCountry "IND"]
[SourceTitle "playchess.com"]
[Source "ChessBase"]
[SourceQuality "1"]
[TimeControl "5400+30"]

1. e4 c5 2. Nf3 g6 3. d4 cxd4 4. Qxd4 Nf6 5. Nc3 Nc6 6. Qa4 d6 7. e5 dxe5 8. Nxe5 Qd4 9. Nxc6 Qxa4 10. Nxa4 bxc6 11. Be3 Bg7 12. O-O-O O-O 13. b3 Nd5 14. Bc5 Re8 15. c4 Nb6 16. Nb2 e5 17. f3 e4 18. fxe4 Bg4 19. Re1 Rad8 20. Nd3 Bc3 21. Re3 Nd7 22. Ba3 Nf6 23. e5 Bf5 24. h3 Ne4 25. Bb4 Bxb4 26. Nxb4 Nf2 27. Rg1 Rd1+ 28. Kb2 c5 29. Nd5 Rxd5 30. cxd5 Nd1+ 31. Ka3 Nxe3 32. Bc4 Rxe5 33. g4 Bd7 0-1